[Event "55th Biel Festival MTO 2022"]
[Site "Biel"]
[Date "2022.07.20"]
[Round "7.33"]
[White "Abdulrahman Mohammad, Al Taher"]
[Black "Kittler Thorsten"]
[Result "1-0"]
[ECO "D36"]
[WhiteElo "2029"]
[BlackElo "2226"]
[Annotator "TA"]
[PlyCount "105"]
[EventDate "2022.07.13"]
[EventType "swiss"]
[EventCountry "SUI"]
[SourceTitle "playchess.com"]
[Source "ChessBase"]
[SourceQuality "1"]
[TimeControl "40/5400+30:1800+30"]

{[%evp 24,105,34,39,23,12,59,37,52,27,58,58,70,70,82,85,76,75,64,66,100,100,127,99,199,189,183,178,184,202,176,175,231,232,265,265,292,291,286,267,265,166,186,38,101,75,135,147,139,172,266,266,285,180,180,180,183,197,199,180,228,173,1082,859,874,259,29967,29969,29969,29970,29970,29971,29971,29969,29963,29964,29961,29963,5093,2590,29970,29970,6099,5410]} 1. d4 {[%emt 0:00:22]} d5 {[%emt 0:00:07]} 2. c4 {[%emt 0:00:33]} e6 {[%emt 0:00:06]} 3. Nc3 {[%emt 0:00:28]} Nf6 {[%emt 0:00:06]} 4. cxd5 {[%emt 0:00:16]} exd5 {[%emt 0:00:11]} 5. Bg5 {[%emt 0:00:30]} Be7 {[%emt 0:00:28]} 6. e3 {[%emt 0:00:42]} O-O {[%emt 0:06:38]} 7. Bd3 {[%emt 0:01:14]} Nbd7 {[%emt 0:06:22]} 8. Nf3 {[%emt 0:02:28]} c6 {[%emt 0:02:30]} 9. Qc2 {[%emt 0:01:06]} Re8 {[%emt 0:01:48]} 10. O-O {[%emt 0:01:18]} h6 {[%emt 0:10:40]} 11. Bf4 {[%emt 0:06:11][%cal Bg5f4,Bf4g3,Bg3e5][%mdl 32]} Nf8 {[%emt 0:04:13]} 12. h3 {[%emt 0:07:17]} Bd6 {[%emt 0:04:30] The main line 12...Bd6 scores better than 12...Ne6.} 13. Ne5 {[%emt 0:14:10]} Qe7 {[%emt 0:00:17] D36: Queen's Gambit Declined: Exchange Variation: Main line (5 Bg5 c6 6 Qc2).} 14. Bg3 {[%emt 0:11:25]} Bxe5 {[%emt 0:15:08]} (14... Ne4 $11) 15. Bxe5 $14 {[%emt 0:02:13] [#]} Ne4 $146 {[%emt 0:03:24] White is slightly better.} ({Predecessor:} 15... N8d7 16. Bh2 Ne4 17. Bxe4 dxe4 18. d5 Nf6 19. dxc6 bxc6 20. Rfd1 Ba6 21. Na4 Bd3 {1-0 (42) Gibiec,E (2320)-Blumel,O Bratislava 1989}) 16. b4 {[%emt 0:12:46]} Nxc3 {[%emt 0:15:36]} 17. Qxc3 {[%emt 0:00:32]} Nd7 {[%emt 0:01:01][%cal Rd7e5,Bf8d7,Bd7b6,Bb6c4][%mdl 32]} 18. Bh2 {[%emt 0:03:04] White is much more active.} Nb6 {[%emt 0:00:04]} 19. a4 {[%emt 0:08:34][%cal Ba2a4,Ba4a5][%mdl 32]} Be6 {[%emt 0:02:19]} 20. a5 {[%emt 0:01:19]} Nc4 {[%emt 0:00:05]} 21. e4 {[%emt 0:01:18][%cal Be3e4,Be4e5][%mdl 32]} b5 {[%emt 0:00:50]} 22. e5 $1 {[%emt 0:01:23]} Qd7 {[%emt 0:03:11]} 23. g4 {[%emt 0:03:26][%cal Bg2g4,Bg4h5][%mdl 32] Against Bf5} h5 {[%emt 0:03:14]} (23... Bxg4 $16 {is a better defense.} 24. Bxc4 (24. hxg4 Qxg4+ 25. Bg3 h5 $14) 24... bxc4 25. hxg4 Qxg4+ 26. Kh1 Qf5) 24. f4 $18 {[%emt 0:02:01] aiming for f5.} f5 {[%emt 0:05:01]} 25. gxh5 {[%emt 0:02:02]} Kf7 {[%emt 0:00:32]} 26. Kf2 {[%emt 0:02:21]} Rh8 {[%emt 0:00:35] [#]} 27. Be2 {[%emt 0:01:08]} Rag8 {[%emt 0:00:53]} (27... Rh6 {was necessary.} 28. Rg1 Rah8) 28. Rg1 {[%emt 0:00:50]} g6 {[%emt 0:08:39]} 29. hxg6+ {[%emt 0:01:45]} Rxg6 {[%emt 0:00:03]} 30. Rxg6 {[%emt 0:00:12] Really sharp!} Kxg6 {[%emt 0:00:02]} 31. Rg1+ {[%emt 0:01:36]} Kf7 {[%emt 0:00:01]} 32. Qg3 {[%emt 0:00:52] Intending Qg7+ and mate.} Kf8 {[%emt 0:00:01] [#] Inhibits Qg7+.} 33. Bd3 {[%emt 0:04:27]} (33. Qd3 $1 $18) 33... Qe7 {[%emt 0:02:00]} (33... Nd2 $1 $14) 34. Ke2 {[%emt 0:05:26] White now steadily converts the win.} Rg8 {[%emt 0:01:05]} (34... Rh5 $142) 35. Qe1 $16 {[%emt 0:00:06]} Rxg1 {[%emt 0:00:13]} 36. Bxg1 {[%emt 0:00:12]} Qh7 {[%emt 0:00:45]} (36... Bf7 {might work better.} 37. Kf1 (37. Bxf5 Bh5+ 38. Bg4 Bxg4+ 39. hxg4 Qh7 $16) 37... Qe6) 37. Qg3 $18 {[%emt 0:01:09]} Qh5+ {[%emt 0:00:06]} 38. Qf3 {[%emt 0:01:31]} Qxf3+ {[%emt 0:02:12]} 39. Kxf3 {[%emt 0:00:01][%mdl 4096] Endgame KBB-KBN} Nd2+ {[%emt 0:00:38]} 40. Kg3 {[%emt 0:01:11]} Kg7 {[%emt 0:00:25]} 41. Be3 {[%emt 0:04:14]} Ne4+ {[%emt 0:01:40]} 42. Kh4 {[%emt 0:00:55] Strongly threatening Bxe4.} Kh6 $2 {[%emt 0:07:08]} (42... Kg6 43. Be2 Bd7) 43. Bxe4 {[%emt 0:01:24]} dxe4 {[%emt 0:00:39] KB-KB} 44. d5 $1 {[%emt 0:00:40]} cxd5 {[%emt 0:01:57]} (44... Bxd5 $18 45. Bxa7 Be6) 45. Bxa7 {[%emt 0:00:06]} Bc8 {[%emt 0:00:20]} 46. Bc5 {[%emt 0:01:53]} Kg6 {[%emt 0:00:15]} 47. Kg3 {[%emt 0:00:38]} Kh5 {[%emt 0:01:01]} 48. Kf2 {[%emt 0:00:08]} Kh4 {[%emt 0:00:44]} 49. Kg2 {[%emt 0:00:09]} Kh5 {[%emt 0:00:08]} 50. Kg3 {[%emt 0:00:02]} Kh6 {[%emt 0:03:26]} 51. Kf2 {[%emt 0:01:15] Threatening mate with Ke3.} Kh5 {[%emt 0:00:06]} 52. Ke3 {[%emt 0:00:32]} Kh4 {[%emt 0:00:08]} 53. Kd4 {[%emt 0:01:16] Weighted Error Value: White=0.17 (very precise) /Black=0.44} 1-0

[Event "55th Biel Festival MTO 2022"]
[Site "Biel"]
[Date "2022.07.20"]
[Round "7.34"]
[White "Vemparala, Nikash"]
[Black "Dushyant Sharma"]
[Result "0-1"]
[ECO "C45"]
[WhiteElo "2049"]
[BlackElo "2416"]
[Annotator "TA"]
[PlyCount "98"]
[EventDate "2022.07.13"]
[EventType "swiss"]
[EventCountry "SUI"]
[SourceTitle "playchess.com"]
[Source "ChessBase"]
[SourceQuality "1"]
[TimeControl "40/5400+30:1800+30"]

{[%evp 9,98,6,12,15,12,14,14,0,0,0,23,10,14,-10,10,0,0,-55,-38,-54,-39,-43,-59,-68,-39,-33,-46,-77,-14,-9,0,-9,-26,-203,0,0,0,0,0,0,0,-16,-16,-31,-31,-31,-31,-31,-31,-31,-6,-6,-6,-37,-31,-31,-31,-99,-105,-383,-354,-5983,-5908,-5456,-183,-5381,-5370,-2645,-2586,-2075,-762,-2073,0,-723,0,-2062,-1996,-1960,-1555,-1629,-1566,-1256,-1169,-12838,-12837,-12836,-12829,-12840,-12841,-12841,-12841]} 1. e4 {[%emt 0:00:08]} e5 {[%emt 0:00:07]} 2. Nf3 {[%emt 0:00:04]} Nc6 {[%emt 0:00:06]} 3. d4 {[%emt 0:00:06]} exd4 {[%emt 0:01:48]} 4. Nxd4 {[%emt 0:00:08]} Qf6 {[%emt 0:01:13]} 5. Nf3 {[%emt 0:00:32]} Bb4+ {[%emt 0:03:29]} 6. c3 {[%emt 0:03:14] C45: Scotch Game.} Bc5 {[%emt 0:01:09]} 7. Bc4 {[%emt 0:02:59]} Ne5 {[%emt 0:07:42] [#]} 8. Be2 $146 {[%emt 0:06:24] The position is equal.} ({Predecessor:} 8. Nxe5 Qxf2# {0-1 (8) Reyan,M (1650)-Audi,A (2395) Visakhapatnam 2022}) 8... d6 {[%emt 0:01:03]} 9. O-O {[%emt 0:00:56]} Ne7 {[%emt 0:03:40]} 10. Nxe5 {[%emt 0:11:35]} dxe5 {[%emt 0:00:16]} 11. a4 {[%emt 0:02:06]} a5 {[%emt 0:01:54]} 12. Qd3 {[%emt 0:03:32]} O-O {[%emt 0:07:20]} 13. Qg3 {[%emt 0:01:25]} (13. Be3 $11 Bxe3 14. Qxe3) 13... Ng6 $15 {[%emt 0:01:40]} 14. Bg5 {[%emt 0:03:52]} Qb6 {[%emt 0:20:02]} 15. Nd2 {[%emt 0:07:09]} f6 {[%emt 0:07:02]} (15... Qxb2 $2 16. Rfb1 Qc2 17. Bd1 $18) 16. Nc4 {[%emt 0:11:34]} Qc6 {[%emt 0:01:48]} 17. Be3 {[%emt 0:00:54]} Bxe3 {[%emt 0:02:10]} 18. Qxe3 {[%emt 0:01:28] [#]} Be6 {[%emt 0:02:25]} (18... Nf4 $1 $17) 19. Nd2 $11 {[%emt 0:01:20]} Rfd8 {[%emt 0:05:03]} 20. Bb5 {[%emt 0:09:30]} Qd6 {[%emt 0:00:21]} 21. Bc4 $2 {[%emt 0:03:26]} (21. Rfd1 $11) 21... Qxd2 $2 {[%emt 0:09:49]} (21... Nf4 $19 22. Bd5 Bxd5 23. exd5 Qxd5) 22. Bxe6+ {[%emt 0:00:08]} Kh8 {[%emt 0:00:04]} (22... Kf8 {is interesting.} 23. Qf3 Qf4 24. Qe2 Qg5) 23. Qxd2 {[%emt 0:01:00]} Rxd2 {[%emt 0:00:06]} 24. Rab1 {[%emt 0:01:05]} Nf4 {[%emt 0:04:23]} 25. Bc4 {[%emt 0:00:23]} Rad8 {[%emt 0:02:07]} 26. g3 {[%emt 0:02:45]} Nd3 {[%emt 0:02:00]} 27. Bxd3 {[%emt 0:02:38]} R8xd3 $15 {[%emt 0:00:02][%mdl 4096] Endgame KRR-KRR} 28. b4 {[%emt 0:00:58]} axb4 {[%emt 0:09:19]} 29. Rxb4 {[%emt 0:00:21]} Rxc3 {[%emt 0:01:12]} (29... b6 $5 {[%cal Rd2a2]}) 30. Rxb7 {[%emt 0:00:09] White wants to mate with Rb8+.} h5 {[%emt 0:00:03]} 31. Ra1 {[%emt 0:00:13] Against Ra2} Rcc2 {[%emt 0:00:40]} 32. Rf1 {[%emt 0:03:55]} c5 {[%emt 0:00:46]} 33. Rbb1 {[%emt 0:01:52]} (33. a5 $15) 33... Ra2 $17 {[%emt 0:00:31] Black is more active. White is on the road to losing.} 34. Ra1 $2 {[%emt 0:00:44][%mdl 8192]} (34. Rbd1 $17 {was necessary.}) 34... Rxf2 $1 $19 {[%emt 0:00:23]} 35. Rfc1 $2 {[%emt 0:01:10]} (35. Rxa2 Rxa2 36. Rf2 Rxa4 37. Re2) 35... Rg2+ {[%emt 0:00:45]} 36. Kf1 {[%emt 0:01:49]} Raf2+ {[%emt 0:00:05]} 37. Ke1 {[%emt 0:00:08]} Rb2 {[%emt 0:00:05][%cal Rg2g1]} 38. Kf1 {[%emt 0:00:12] Prevents Rg1+.} Rxh2 {[%emt 0:00:05][%cal Rh2h1]} 39. Kg1 {[%emt 0:00:04] Prevents Rh1+.} Rbg2+ {[%emt 0:01:31]} 40. Kf1 {[%emt 0:00:05]} Rb2 {[%emt 0:00:26]} (40... Rxg3 $142 41. Rxc5 h4 42. Rc8+ Kh7) 41. Kg1 {[%emt 0:30:09]} Rbg2+ {[%emt 0:10:22]} (41... Rhg2+ $142 42. Kh1 Rh2+ 43. Kg1) 42. Kf1 {[%emt 0:00:00]} Rxg3 {[%emt 0:00:17] ( -> ...h4). Black is clearly winning.} 43. a5 {[%emt 0:00:00]} Rh1+ {[%emt 0:00:18]} 44. Kf2 {[%emt 0:00:00] [#]} Rxc1 $1 {[%emt 0:00:05]} 45. Rxc1 {[%emt 0:00:00]} Ra3 {[%emt 0:00:03] Threatens to win with ...g5.} 46. Rxc5 {[%emt 0:00:00]} Kh7 {[%emt 0:00:59]} 47. Ke2 {[%emt 0:00:00]} h4 {[%emt 0:00:06][%cal Bh5h4,Bh4h3][%mdl 32]} 48. Kd2 {[%emt 0:00:00]} h3 {[%emt 0:00:17]} 49. Rc1 {[%emt 0:00:00]} Rxa5 {[%emt 0:00:09] Weighted Error Value: White=0.68/Black=0.37} 0-1

[Event "55th Biel Festival MTO 2022"]
[Site "Biel"]
[Date "2022.07.20"]
[Round "7.35"]
[White "Sadeghi, Hassan Roger"]
[Black "Bewersdorff Oliver"]
[Result "1/2-1/2"]
[ECO "C56"]
[WhiteElo "2068"]
[BlackElo "2280"]
[Annotator "TA"]
[PlyCount "51"]
[EventDate "2022.07.13"]
[EventType "swiss"]
[EventCountry "SUI"]
[SourceTitle "playchess.com"]
[Source "ChessBase"]
[SourceQuality "1"]
[TimeControl "40/5400+30:1800+30"]

{[%evp 22,51,56,44,46,46,47,35,26,37,37,13,54,43,66,-8,-4,-12,-4,-27,98,47,165,10,19,0,0,-9,29,18,33,22]} 1. e4 {[%emt 0:00:33]} e5 {[%emt 0:00:07]} 2. Nf3 {[%emt 0:00:25]} Nc6 {[%emt 0:00:08]} 3. Bc4 {[%emt 0:00:17]} Nf6 {[%emt 0:00:10]} 4. d4 {[%emt 0:01:34]} exd4 {[%emt 0:00:23]} 5. e5 {[%emt 0:01:24]} d5 {[%emt 0:00:25]} 6. Bb5 {[%emt 0:02:15]} Ne4 {[%emt 0:00:21]} 7. Nxd4 {[%emt 0:00:15]} Bc5 {[%emt 0:00:25]} 8. Be3 {[%emt 0:02:38]} Bxd4 {[%emt 0:00:53]} 9. Qxd4 {[%emt 0:04:12]} O-O {[%emt 0:00:10]} 10. Bxc6 {[%emt 0:01:17]} bxc6 {[%emt 0:00:05]} 11. Nc3 {[%emt 0:00:24]} Ng5 {[%emt 0:04:35]} 12. O-O-O {[%emt 0:06:55]} Ne6 {[%emt 0:05:05] C56: Two Knights: 4 d4 exd4 5 0-0 Nxe4.} 13. Qa4 {[%emt 0:01:01]} Bd7 {[%emt 0:04:53]} 14. Qa3 {[%emt 0:00:25] Prevents c5.} (14. Qa5 $5 {[%cal Rf2f4]}) 14... f6 {[%emt 0:01:20]} 15. exf6 {[%emt 0:01:57]} Qxf6 {[%emt 0:00:50]} 16. Ne2 {[%emt 0:05:03] [#] Prevents d4.} Rfe8 $146 {[%emt 0:10:40]} ({Predecessor:} 16... Be8 17. Nd4 Nxd4 18. Bxd4 Qg5+ 19. Qe3 Qxe3+ 20. Bxe3 Bh5 21. f3 Rfe8 22. Rhe1 a6 {½-½ (77) Vuckovic,Z (2258)-Stelmaszyk,N (2194) Braunschweig 2019}) 17. Rhe1 {[%emt 0:06:34]} Qg6 {[%emt 0:05:44]} 18. Qd3 {[%emt 0:04:37]} (18. g3 $14) 18... Qxg2 $11 {[%emt 0:14:29]} 19. Rg1 {[%emt 0:03:05]} Qh3 {[%emt 0:02:53]} (19... Qxh2 $2 20. Rh1 Qd6 21. Qxh7+ Kf7 22. Rdg1 $16) 20. Rg3 {[%emt 0:08:19]} Qh4 {[%emt 0:01:47] [#]} ({Much less strong is} 20... Qxh2 21. Rdg1 Re7 22. Nd4 $16) (20... Qh5 $1 $11) 21. Rdg1 {[%emt 0:03:13] White is more active.} ({White should play} 21. f4 $1 $16 {[%cal Rf4f5]}) 21... Re7 {[%emt 0:01:11] [#]} (21... Qxh2 $2 22. Nf4 $18) (21... Qc4 $14) 22. Nd4 $2 {[%emt 0:10:01]} (22. f4 $1 $18 {[%cal Rf4f5]}) 22... Nf4 {[%emt 0:11:03]} (22... Qxh2 $2 23. Nxe6 Bxe6 24. Qc3 Qxg1+ 25. Rxg1 $18) 23. Qd2 {[%emt 0:00:42][%mdl 1024] White has compensation.} Nh3 {[%emt 0:02:30]} 24. Rd1 {[%emt 0:09:33]} a5 {[%emt 0:06:09]} 25. Qc3 {[%emt 0:01:29]} Qf6 {[%emt 0:03:15] [#]} 26. Nxc6 $1 {[%emt 0:04:07] Weighted Error Value: White=0.31/Black=0.36} 1/2-1/2

[Event "55th Biel Festival MTO 2022"]
[Site "Biel"]
[Date "2022.07.20"]
[Round "7.36"]
[White "Nideroest Bruno"]
[Black "Acikel Mert"]
[Result "1/2-1/2"]
[ECO "E05"]
[WhiteElo "2258"]
[BlackElo "2172"]
[Annotator "TA"]
[PlyCount "129"]
[EventDate "2022.07.13"]
[EventType "swiss"]
[EventCountry "SUI"]
[SourceTitle "playchess.com"]
[Source "ChessBase"]
[SourceQuality "1"]
[TimeControl "40/5400+30:1800+30"]

{[%evp 13,129,8,13,1,16,16,23,29,22,29,27,22,22,26,15,18,58,46,76,65,74,44,123,147,133,122,111,116,100,79,77,79,147,147,150,145,143,151,151,151,152,148,149,138,147,131,207,207,206,204,200,0,198,191,198,198,198,198,191,0,152,120,128,0,141,0,129,121,114,105,117,116,108,113,116,95,89,58,86,87,90,90,154,100,100,100,100,39,39,0,39,39,39,39,39,39,39,39,39,39,39,39,39,39,39,8,8,0,0,0,0,0,0,0,0,0,0,0]} 1. d4 {[%emt 0:04:55]} d5 {[%emt 0:00:15]} 2. c4 {[%emt 0:00:02]} e6 {[%emt 0:00:12]} 3. Nf3 {[%emt 0:00:04]} Nf6 {[%emt 0:00:09]} 4. g3 {[%emt 0:00:03]} Be7 {[%emt 0:00:18]} 5. Bg2 {[%emt 0:00:02]} O-O {[%emt 0:01:19]} 6. O-O {[%emt 0:00:02]} dxc4 {[%emt 0:00:13]} 7. Qc2 {[%emt 0:00:12]} b5 {[%emt 0:00:08]} 8. a4 {[%emt 0:00:08] E05: Open Catalan: 5 Nf3 Be7.} Bb7 {[%emt 0:00:10]} 9. axb5 {[%emt 0:00:14]} a6 {[%emt 0:00:11]} 10. Nc3 {[%emt 0:01:54] Inhibits Be4. White has an edge.} axb5 {[%emt 0:02:02]} 11. Rxa8 {[%emt 0:00:19]} Bxa8 {[%emt 0:00:08]} 12. Nxb5 {[%emt 0:00:18]} Bd5 {[%emt 0:01:05]} 13. Rd1 {[%emt 0:21:26]} c5 {[%emt 0:07:31] [#]} 14. Nc3 $146 {[%emt 0:18:18] next e4 is good for White.} ({Predecessor:} 14. dxc5 Qa5 15. Nfd4 Bxc5 16. Bxd5 exd5 17. b3 Rc8 18. bxc4 Bxd4 19. Nxd4 Rxc4 20. Qb1 {1-0 (48) Fedoseev,V (2704)-Oparin,G (2681) Berlin 2022}) 14... Bb7 {[%emt 0:28:55]} ({Don't do} 14... Bxf3 15. dxc5 Nbd7 16. Bxf3 (16. exf3 Bxc5 17. Na4 Qc8 $14) 16... Bxc5 17. Ne4 $16) 15. Qa4 {[%emt 0:11:08]} Qb6 {[%emt 0:15:55]} 16. Qxc4 {[%emt 0:01:58]} Ba6 {[%emt 0:00:34]} 17. Qa4 {[%emt 0:09:10] White is more active.} (17. Qa2 $5 {[%cal Rc1e3]}) 17... Nc6 {[%emt 0:07:41]} ({Black should play} 17... cxd4 $14 18. Nxd4 (18. Qxd4 Bc5 $15) 18... Bc5) 18. Be3 $16 {[%emt 0:05:21] [#] Strongly threatening dxc5.} Nb4 {[%emt 0:08:09]} 19. dxc5 {[%emt 0:03:25]} Bxc5 {[%emt 0:00:11]} 20. Bxc5 {[%emt 0:00:19]} Qxc5 {[%emt 0:00:08]} 21. Nd4 {[%emt 0:08:33]} h6 {[%emt 0:09:58]} 22. Na2 {[%emt 0:05:36]} Rb8 {[%emt 0:08:05] [#]} (22... Nxa2 $142 23. Qxa6 (23. Qxa2 Qb6 $14) 23... Rd8) 23. Nxb4 $1 {[%emt 0:01:47]} Rxb4 {[%emt 0:00:14]} 24. Qxa6 {[%emt 0:00:01]} Rxd4 {[%emt 0:00:22]} 25. Rxd4 {[%emt 0:00:15]} Qxd4 {[%emt 0:00:08][%mdl 4096] Endgame KQB-KQN} 26. Qc8+ {[%emt 0:00:10]} Kh7 {[%emt 0:00:14]} 27. Qc2+ {[%emt 0:00:05]} g6 {[%emt 0:01:00]} 28. e3 {[%emt 0:00:20]} Qd6 {[%emt 0:02:41]} 29. Bf3 {[%emt 0:00:43]} h5 {[%emt 0:02:03]} (29... Qb4 $16 30. b3 Kg8) 30. Qc3 $18 {[%emt 0:03:32]} Nd7 {[%emt 0:01:11]} 31. Qd4 {[%emt 0:00:32]} Qc7 {[%emt 0:00:12]} 32. Qc3 $2 {[%emt 0:01:50]} (32. b4 $18) 32... Qb8 $2 {[%emt 0:03:37]} (32... Qd6 $1 $11 {and Black is okay.}) 33. h4 {[%emt 0:01:25]} Ne5 {[%emt 0:00:09]} 34. Bg2 {[%emt 0:00:18]} Qd6 {[%emt 0:00:38]} 35. Qd4 {[%emt 0:00:21] Inhibits Qd1+.} Qc7 {[%emt 0:00:08] ...Qc1+ is the strong threat.} 36. Qc3 {[%emt 0:00:28] Inhibits Qc1+.} Qd6 {[%emt 0:00:06]} 37. Qc2 {[%emt 0:01:56]} Qb4 {[%emt 0:00:26]} 38. Qc3 {[%emt 0:00:19]} Qd6 {[%emt 0:00:57]} 39. Qc2 {[%emt 0:01:10]} Qb4 $1 {[%emt 0:01:01]} 40. Ba8 {[%emt 0:00:49]} Nc4 {[%emt 0:01:31]} 41. Bf3 {[%emt 0:14:59]} Nxb2 {[%emt 0:14:34]} 42. Bxh5 $1 {[%emt 0:01:31]} Nc4 {[%emt 0:00:16]} 43. Be2 {[%emt 0:01:07]} Ne5 {[%emt 0:00:56]} 44. h5 {[%emt 0:03:39]} Kg7 {[%emt 0:06:15]} 45. f4 {[%emt 0:01:49]} Qe1+ {[%emt 0:02:14]} 46. Kg2 {[%emt 0:00:08]} Nd7 {[%emt 0:00:17]} 47. hxg6 {[%emt 0:00:52]} fxg6 {[%emt 0:00:09]} (47... f5 $142) 48. Qd1 {[%emt 0:01:48]} (48. Qd3 $142 Nf6 49. e4) 48... Qxd1 $16 {[%emt 0:00:20]} 49. Bxd1 {[%emt 0:00:30] KB-KN} Kf6 {[%emt 0:03:14]} 50. Bg4 {[%emt 0:02:47]} (50. Kf3 $16) 50... Nc5 $14 {[%emt 0:01:10]} 51. Bd1 {[%emt 0:02:06]} g5 {[%emt 0:04:25]} 52. Kf3 {[%emt 0:00:10]} gxf4 {[%emt 0:00:08]} 53. Kxf4 {[%emt 0:00:33]} Nd3+ {[%emt 0:00:07]} 54. Kf3 {[%emt 0:00:08]} Ke5 {[%emt 0:01:42]} 55. Be2 {[%emt 0:01:44]} Nc5 {[%emt 0:00:28]} 56. Bb5 {[%emt 0:02:06]} Kf5 {[%emt 0:01:05]} 57. Bc6 {[%emt 0:00:54]} e5 {[%emt 0:00:25]} 58. Bd5 {[%emt 0:00:22]} Nd7 {[%emt 0:00:21]} 59. g4+ {[%emt 0:01:03]} Kg5 {[%emt 0:00:01] The position is equal.} 60. Kg3 {[%emt 0:00:50]} Nf6 {[%emt 0:00:52][%csl LRd5,LRg4]} 61. Be6 {[%emt 0:00:04]} e4 {[%emt 0:00:13]} 62. Bf5 {[%emt 0:00:19]} Nd5 {[%emt 0:00:02]} 63. Kf2 {[%emt 0:00:31]} Nf6 {[%emt 0:00:01]} 64. Kg3 {[%emt 0:00:21]} Nd5 {[%emt 0:00:01]} 65. Kf2 {[%emt 0:00:18] Blacks defense is rewarded with a draw.  Weighted Error Value: White=0.20 (precise) /Black=0.15 (very precise)} 1/2-1/2

[Event "55th Biel Festival MTO 2022"]
[Site "Biel"]
[Date "2022.07.20"]
[Round "7.37"]
[White "Dauth Benjamin"]
[Black "Louis Thibault"]
[Result "0-1"]
[ECO "C20"]
[WhiteElo "2243"]
[BlackElo "2140"]
[Annotator "TA"]
[PlyCount "100"]
[EventDate "2022.07.13"]
[EventType "swiss"]
[EventCountry "SUI"]
[SourceTitle "playchess.com"]
[Source "ChessBase"]
[SourceQuality "1"]
[TimeControl "40/5400+30:1800+30"]

{[%evp 9,100,-25,-26,-33,-20,-18,-30,-49,-10,-18,-8,-16,15,-2,32,-16,0,0,0,0,0,-24,0,-35,-8,-120,-125,-120,-117,-140,-152,-136,-151,-140,-48,-91,-96,-97,-97,-164,-168,-191,-186,-189,-191,-189,-185,-184,-187,-243,-243,-237,-237,-420,-416,-455,-445,-465,-450,-505,-503,-490,-372,-483,-455,-479,-474,-451,-437,-432,0,-1283,-1221,-1119,-545,-1084,-812,-670,-589,-960,-937,-1066,-761,-716,-554,-29986,-29987,-29987,-29988,-29990,-29991,-29991,-29992]} 1. e4 {[%emt 0:03:33]} e5 {[%emt 0:03:12]} 2. Qh5 {[%emt 0:01:30]} d6 {[%emt 0:01:32]} 3. Bc4 {[%emt 0:00:06]} g6 {[%emt 0:00:13]} 4. Qf3 {[%emt 0:00:28]} Nf6 {[%emt 0:01:47]} 5. d3 {[%emt 0:00:53]} Bg7 {[%emt 0:01:33]} 6. Nc3 {[%emt 0:00:38] C20: 1 e4 e5: Unusual White second moves.} c6 {[%emt 0:01:21]} 7. a4 {[%emt 0:00:45] [#] Against b5} O-O $146 {[%emt 0:08:43]} ({Predecessor:} 7... Be6 8. Bxe6 fxe6 9. Qh3 Qe7 10. Nf3 Nbd7 11. Bh6 O-O 12. Bxg7 Kxg7 13. d4 exd4 14. Nxd4 {½-½ (45) Sarkar,J (2349)-Kuhn,T (2234) Arco 2019}) 8. Nge2 {[%emt 0:00:32] Black has an edge.} Nbd7 {[%emt 0:04:28][%cal Bb8d7,Bd7c5,Bc5e6,Be6d4][%mdl 32]} 9. O-O {[%emt 0:00:34]} Nc5 {[%emt 0:02:44]} 10. h3 {[%emt 0:06:03]} b6 {[%emt 0:04:46]} 11. Bg5 {[%emt 0:01:58]} (11. b4 $5 {[%cal Rb4c5]} Ne6 12. b5 $11) 11... h6 {[%emt 0:01:15]} 12. Bc1 {[%emt 0:01:41]} (12. Bxf6 $14 Bxf6 13. b4) 12... Bb7 {[%emt 0:08:44]} 13. b4 {[%emt 0:03:04]} Ne6 {[%emt 0:00:37]} 14. b5 {[%emt 0:00:19]} c5 {[%emt 0:13:50]} 15. Rb1 {[%emt 0:08:40][%cal Oa4a5]} Kh7 {[%emt 0:07:04]} 16. Bb3 {[%emt 0:09:16]} Rc8 {[%emt 0:10:27]} 17. Be3 {[%emt 0:04:50]} (17. Bd2 $11) 17... Nd4 $17 {[%emt 0:00:19]} 18. Bxd4 {[%emt 0:00:17]} cxd4 {[%emt 0:00:18]} 19. Na2 {[%emt 0:00:51]} d5 {[%emt 0:02:56]} 20. exd5 {[%emt 0:04:11]} Bxd5 {[%emt 0:02:35]} 21. Bxd5 {[%emt 0:00:22]} Qxd5 {[%emt 0:00:26]} (21... Nxd5 $17 22. Rbc1 f5) 22. Qxd5 {[%emt 0:03:42]} Nxd5 {[%emt 0:00:01] Black converts the advantage convincingly.} 23. Rfc1 {[%emt 0:00:20]} Rfd8 {[%emt 0:01:34] 0x0.0013ba76a987dp-1022s more active pieces.} 24. Kf1 {[%emt 0:07:26]} (24. Nb4 $17) 24... h5 $19 {[%emt 0:00:10]} 25. c4 {[%emt 0:00:07]} dxc3 $1 {[%emt 0:00:18]} 26. Nexc3 {[%emt 0:01:23]} Nxc3 {[%emt 0:03:55]} 27. Rxc3 {[%emt 0:00:35]} Rxc3 {[%emt 0:00:22]} 28. Nxc3 {[%emt 0:00:11]} Rxd3 {[%emt 0:00:07][%mdl 4096] Endgame KRB-KRN} 29. Ne4 {[%emt 0:00:56]} (29. Rc1 $142) 29... Kh6 {[%emt 0:05:36]} ({Inferior is} 29... f5 30. Ng5+ Kh8 31. Rc1 $11) 30. h4 {[%emt 0:03:26]} Rd4 {[%emt 0:08:28][%csl LRa4,LRe4]} 31. f3 {[%emt 0:00:23]} (31. Ng5 {was called for.} Bf6 32. Rc1 Bxg5 33. hxg5+ Kxg5 34. Rc7) 31... f5 {[%emt 0:00:19]} 32. Ng5 {[%emt 0:00:38]} Bf6 {[%emt 0:01:25]} 33. Ne6 {[%emt 0:02:47]} Rxh4 {[%emt 0:01:14]} 34. Ke2 {[%emt 0:00:01]} Rxa4 {[%emt 0:00:16]} 35. Rd1 {[%emt 0:00:18]} a6 {[%emt 0:02:24]} 36. Rd6 {[%emt 0:00:33]} Ra2+ {[%emt 0:00:28]} 37. Kf1 {[%emt 0:00:16]} axb5 {[%emt 0:00:13] ...e4 is the strong threat.} 38. Rxb6 {[%emt 0:00:22]} Ra1+ {[%emt 0:01:48]} 39. Kf2 {[%emt 0:01:50]} Ra2+ $2 {[%emt 0:01:52]} (39... Bh4+ $19 40. Ke3 Re1+ 41. Kd3 e4+ 42. Kd2 exf3 43. gxf3 Bf2) 40. Kg3 $2 {[%emt 0:00:05][%mdl 8192]} (40. Kf1 $11 Ra1+ 41. Kf2) 40... h4+ {[%emt 0:00:21]} 41. Kh3 {[%emt 0:30:34]} Ra1 {[%emt 0:02:13][%cal Ra1h1] [#]} 42. Kh2 {[%emt 0:00:00] Against Rh1+} Rb1 {[%emt 0:05:25]} 43. Nf8 {[%emt 0:00:00]} Kg7 {[%emt 0:01:39] White must now prevent ...e4.} 44. Ne6+ {[%emt 0:00:00]} Kf7 {[%emt 0:00:31]} 45. Nc5 {[%emt 0:00:00]} Bg5 {[%emt 0:01:39]} 46. Rb7+ {[%emt 0:00:00]} Kg8 {[%emt 0:00:26] ( -> ...Bf4+)} 47. g3 {[%emt 0:00:00] Inhibits Bf4.} Rb2+ {[%emt 0:01:14] Black mates.} 48. Kh3 {[%emt 0:00:00]} hxg3 {[%emt 0:00:05]} 49. Nd3 {[%emt 0:00:00]} g2 {[%emt 0:00:11]} 50. Kh2 {[%emt 0:00:00] [#]} Be3 $1 {[%emt 0:00:21] Weighted Error Value: White=0.70/Black=0.41} 0-1